Workbook

Sheet Sheet1 (hidden)
B2: Paid
B3: Under Procress
B4: Pending

Sheet April
A1: Vendors Payment April 2024
P3: المطلوب كود لاستدعاء كل الفواتير ( under process ) لكل مورد من كل الشيتات
P4: وعمل جدول لكل مورد مثل هذا التقرير
P5: علما بان كل مورد له شيت مستقل وحركة مستقلة
A6: Payment Terms | D6: 60 days from the date of delivery
A7: Vnd1
A9: Sr.No. | B9: Date | C9: SRV No. | D9: Material Name | E9: RM No. | F9: Quantity Received (Kg/No.s) | G9: Payment Due Date | H9: Amount Due/Paid | I9: Currency | J9: Due Age For RM (Days) | K9: INVOICE No. | L9: P.O.
A10: 1 | B10: 2024-01-10 | C10: WH/IN/418 | D10: JERRY CAN 20 LTR BLUE-PRINTED SBR BO.1 (WITH CAPS) | E10: 7015 | F10: 91 | G10: =B10+60 -> 2024-03-10 | H10: 72.8 | I10: KWD | K10: 1750090795 | L10: 202912
D11: JERRY CAN 20 LTR BLUE-PRINTED SBR. NO.2 (WITH CAPS) | E11: 7049 | F11: 200 | H11: 160
M12: =SUM(H10:H12) -> 232.8
A15: Payment Terms | D15: 90 days from date of Delivery
A16: Vnd3
A18: Sr.No. | B18: Date | C18: SRV No. | D18: Material Name | E18: RM No. | F18: Quantity Received (Kg/No.s) | G18: Payment Due Date | H18: Amount Due/Paid | I18: Currency | J18: Due Age For RM (Days) | K18: INVOICE No. | L18: P.O.
B19: 2022-06-06 | C19: 205498 | D19: SNF LIQUID | E19: 1002 | F19: 25000 | G19: =B19+60 -> 2022-08-05 | H19: 12625 | I19: USD | K19: 4170007013 | L19: 202675 | M19: =SUM(H19) -> 12625
A23: Payment Terms | D23: 60 days from date of Delivery
A24: Vnd4
A26: Sr.No. | B26: Date | C26: SRV No. | D26: Material Name | E26: RM No. | F26: Quantity Received (Kg/No.s) | G26: Payment Due Date | H26: Amount Due/Paid | I26: Currency | J26: Due Age For RM (Days) | K26: INVOICE No. | L26: P.O.
B27: 2023-12-27 | C27: WH/IN/484 | D27: SODIUM GLUCONATE | E27: 1012 | F27: 48000 | G27: =B27+75 -> 2024-03-11 | H27: 30480 | I27: USD | K27: 5794 | L27: 202910 | M27: =SUM(H27) -> 30480
A31: Payment Terms | D31: 60 days from date of Delivery
A32: Vnd5
A34: Sr.No. | B34: Date | C34: SRV No. | D34: Material Name | E34: RM No. | F34: Quantity Received (Kg/No.s) | G34: Payment Due Date | H34: Amount Due/Paid | I34: Currency | J34: Due Age For RM (Days) | K34: INVOICE No. | L34: P.O.
A35: 1 | B35: 2024-01-03 | C35: WH/IN/00400 | D35: PREVENTOL D 6 | E35: 1013 | F35: 800 | G35: =B35+90 -> 2024-04-02 | H35: 680 | I35: KWD | K35: SLS-104197 | L35: 202681
A36: 2 | B36: 2024-01-03 | C36: WH/IN/399 | D36: VINNAPAS 5010 N | E36: 2069 | F36: 1950 | G36: 2024-04-02 | H36: 2242.5 | I36: KWD | K36: SLS-104198 | L36: 202854 | M36: =SUM(H36) -> 2242.5
A40: Payment Terms | D40: 60 days from date of Delivery
A41: Vnd6
A43: Sr.No. | B43: Date | C43: SRV No. | D43: Material Name | E43: RM No. | F43: Quantity Received (Kg/No.s) | G43: Payment Due Date | H43: Amount Due/Paid | I43: Currency | J43: Due Age For RM (Days) | K43: INVOICE No. | L43: P.O.
A44: 1 | B44: 2024-02-15 | C44: WH/IN/483 | D44: BYK-1615 | E44: 2027 | F44: 740 | G44: =B44+60 -> 2024-04-15 | H44: 647.5 | I44: KWD | K44: SINV-007991 | L44: 202914
D45: PROXEL 106 | E45: 2057 | F45: 100 | H45: 75
A46: 2 | B46: 2024-02-21 | C46: WH/IN/499 | D46: BYK-1615 | E46: 2027 | F46: 370 | G46: =B46+60 -> 2024-04-21 | H46: 323.75 | I46: KWD | K46: SINV-008012 | L46: 202914
A47: 3 | B47: 2024-02-21 | C47: WH/IN/501 | D47: HECELLOSE H 100 K | E47: 2020 | F47: 140 | G47: =B47+60 -> 2024-04-21 | H47: 343 | I47: KWD | K47: SINV-008011 | L47: 202871
A48: 4 | B48: 2024-02-22 | C48: WH/IN/502 | D48: BERmocoll 230 X | E48: 2035 | F48: 330 | G48: =B48+60 -> 2024-04-22 | H48: 726 | I48: KWD | K48: SINV-008021 | L48: 202905 | M48: =SUM(H44:H48) -> 2115.25
A52: Payment Terms | D52: 45 DAYS
A53: Vnd7
A55: Sr.No. | B55: Date | C55: SRV No. | D55: Material Name | E55: RM No. | F55: Quantity Received (Kg/No.s) | G55: Payment Due Date | H55: Amount Due/Paid | I55: Currency | J55: Due Age For RM (Days) | K55: INVOICE No. | L55: P.O.
B56: 2024-01-11 | C56: WH/IN/00421 | D56: Revacryl AE 2091 JA | E56: 2029 | F56: 5000 | G56: =B56+60 -> 2024-03-11 | H56: 2765 | I56: KWD | K56: SINV-032676 | L56: 202897
B57: 2024-01-22 | C57: WH/IN/0444 | D57: CALCIUM STEARATE | E57: 2018 | F57: 1520 | G57: 2024-03-22 | H57: 1208.4 | I57: KWD | K57: SINV-032835 | L57: 202818
B58: 2024-02-01 | C58: WH/IN/493 | D58: WHITE SPIRIT | E58: 2061 | F58: 640 | G58: =B58+60 -> 2024-04-01 | H58: 194 | I58: KWD | K58: SINV-031451 | L58: 202886 | M58: =SUM(H56:H58) -> 4167.4
A62: Payment Terms | D62: 30 DAYS FROM DELIVERY
A63: Vnd8
A65: Sr.No. | B65: Date | C65: SRV No. | D65: Material Name | E65: RM No. | F65: Quantity Received (Kg/No.s) | G65: Payment Due Date | H65: Amount Due/Paid | I65: Currency | J65: Due Age For RM (Days) | K65: INVOICE No. | L65: P.O.
B66: 2021-11-06 | C66: 204979 | D66: OPC CEMENT | E66: 2001 | F66: 39660 | G66: =B66+60 -> 2022-01-05 | H66: 880.452 | I66: KWD | K66: 7900014571 | L66: 202509
H67: -218.13 | K67: 7900014603
B68: 2021-11-08 | C68: 204991 | D68: OPC CEMENT | E68: 2001 | F68: 20000 | G68: =B68+60 -> 2022-01-07 | H68: 376 | I68: KWD | K68: 7900014572 | L68: 202306 | M68: =SUM(H66:H68) -> 1038.322
L71: TOTAL PAYMENT | M71: =+M68+M58+M48+M36+M27+M19+M12 -> 52901.272

Sheet Vnd1
A3: Payment Terms | C3: 60 Days from Date of Delivery
A4: Vnd1
A6: Sr.No. | B6: Date | C6: SRV No. | D6: Material Name | E6: RM No. | F6: Quantity Received (Kg/No.s) | G6: Payment Due Date | H6: Amount Due/Paid | I6: Currency | J6: Due Age For RM (Days) | K6: INVOICE No. | L6: P.O. | M6: Statues
A7: 5 | B7: 2024-01-06 | C7: WH/IN/452 | D7: PROD1 | E7: 7025 | F7: 3950 | G7: =B7+60 -> 2024-03-06 | H7: 131.95 | I7: KWD | K7: 1750090999 | L7: 202921 | M7: Paid
B8: 2024-01-10 | C8: WH/IN/418 | D8: PROD2 | E8: 7015 | F8: 91 | G8: =B8+60 -> 2024-03-10 | H8: 72.8 | I8: KWD | K8: 1750090795 | L8: 202912 | M8: Under Procress
D9: PROD3 | E9: 7049 | F9: 200 | H9: 160 | M9: Under Procress
D10: PROD4 | E10: 7003 | F10: 400 | G10: =B10+60 -> 60 | H10: 320 | I10: KWD | L10: 202945 | M10: Pending

Sheet Vnd2
A2: Payment Terms | C2: 60 Days from Date of Delivery
A5: Vnd2
A7: Sr.No. | B7: Date | C7: SRV No. | D7: Material Name | E7: RM No. | F7: Quantity Received (Kg/No.s) | G7: Payment Due Date | H7: Amount Due/Paid | I7: Currency | J7: Due Age For RM (Days) | K7: INVOICE No. | L7: P.O. | M7: Statues
A8: 2 | B8: 2019-11-28 | C8: 203461 | D8: PROD1 | E8: 1001 | F8: 22000 | G8: 2020-01-28 | H8: 15620 | I8: USD | K8: SE/439 | L8: 202007 | M8: Paid

Sheet Vnd3
A3: Payment Terms | C3: 60 Days from Date of Delivery
A4: Vnd3
A6: Sr.No. | B6: Date | C6: SRV No. | D6: Material Name | E6: RM No. | F6: Quantity Received (Kg/No.s) | G6: Payment Due Date | H6: Amount Due/Paid | I6: Currency | J6: Due Age For RM (Days) | K6: INVOICE No. | L6: P.O. | M6: Statues
A7: 3 | B7: 2022-06-01 | C7: 205494 | D7: PROD1 | E7: 1002 | F7: 25000 | G7: =B7+60 -> 2022-07-31 | H7: 12625 | I7: USD | K7: 4170007147 | L7: 202675 | M7: Paid
B8: 2022-06-06 | C8: 205498 | D8: PROD2 | E8: 1002 | F8: 25000 | G8: 2022-08-05 | H8: 12625 | I8: USD | K8: 4170007013 | L8: 202675 | M8: Under Procress

Sheet Vnd4
A3: Payment Terms | D3: 90 Days From Date of PL
A4: Vnd4
A6: Sr.No. | B6: Date | C6: SRV No. | D6: Material Name | E6: RM No. | F6: Quantity Received (Kg/No.s) | G6: Payment Due Date | H6: Amount Due/Paid | I6: Currency | J6: Due Age For RM (Days) | K6: INVOICE No. | L6: P.O. | M6: Statues | N6: DUE AS ON 21/04/2019
A7: 2 | B7: 2023-12-18 | C7: WH/IN/465 | D7: PROD1 | E7: 1012 | F7: 72000 | G7: =B7+75 -> 2024-03-02 | H7: 45720 | I7: USD | K7: 5793 | L7: 202910 | M7: Paid
B8: 2023-12-27 | C8: WH/IN/484 | D8: PROD2 | E8: 1012 | F8: 48000 | G8: =B8+75 -> 2024-03-11 | H8: 30480 | I8: USD | K8: 5794 | L8: 202910 | M8: Under Procress
B9: 2024-02-13 | C9: WH/IN/510 | D9: PROD3 | E9: 2037 | F9: 18000 | G9: =B9+90 -> 2024-05-13 | H9: 21150 | I9: USD | K9: 5870 | L9: 202936 | M9: Pending

Sheet Vnd5
A3: Payment Terms | D3: 90 Days From Date of Delivery
A4: Vnd5
A6: Sr.No. | B6: Date | C6: SRV No. | D6: Material Name | E6: RM No. | F6: Quantity Received (Kg/No.s) | G6: Payment Due Date | H6: Amount Due/Paid | I6: Currency | J6: Due Age For RM (Days) | K6: INVOICE No. | L6: P.O. | M6: Statues | N6: DUE AS ON 21/04/2019
A7: 2 | B7: 2023-11-16 | C7: WH/IN/0334 | D7: PROD1 | E7: 2069 | F7: 1950 | G7: =B7+90 -> 2024-02-14 | H7: 2242.5 | I7: KWD | K7: SLS-104153 | L7: 202854 | M7: Paid
B8: 2024-01-03 | C8: WH/IN/00400 | D8: PROD2 | E8: 1013 | F8: 800 | G8: 2024-04-02 | H8: 680 | I8: KWD | K8: SLS-104197 | L8: 202681 | M8: Under Procress
B9: 2024-01-03 | C9: WH/IN/399 | D9: PROD3 | E9: 2069 | F9: 1950 | G9: 2024-04-02 | H9: 2242.5 | I9: KWD | K9: SLS-104198 | L9: 202854 | M9: Under Procress
B10: 2024-03-11 | C10: WH/IN/530 | D10: PROD4 | E10: 2070 | F10: 1625 | G10: =B10+90 -> 2024-06-09 | H10: 2925 | I10: KWD | K10: SLS-104283 | L10: 202927 | M10: Pending

Sheet Vnd6
A3: Payment Terms | D3: 60 Days From Date of Delivery
A4: Vnd6
A6: Sr.No. | B6: Date | C6: SRV No. | D6: Material Name | E6: RM No. | F6: Quantity Received (Kg/No.s) | G6: Payment Due Date | H6: Amount Due/Paid | I6: Currency | J6: Due Age For RM (Days) | K6: INVOICE No. | L6: P.O. | M6: Statues | N6: DUE AS ON 21/04/2019
B7: 2024-02-15 | C7: WH/IN/482 | D7: PROD1 | E7: 3073 | F7: 18 | G7: =B7+60 -> 2024-04-15 | H7: 30.96 | I7: KWD | K7: SINV-007994 | L7: 202759 | M7: Paid
B8: 2024-02-15 | C8: WH/IN/483 | D8: PROD2 | E8: 2027 | F8: 740 | G8: =B8+60 -> 2024-04-15 | H8: 647.5 | I8: KWD | K8: SINV-007991 | L8: 202914 | M8: Under Procress
D9: PROD3 | E9: 2057 | F9: 100 | H9: 75 | M9: Under Procress
B10: 2024-02-21 | C10: WH/IN/499 | D10: PROD4 | E10: 2027 | F10: 370 | G10: =B10+60 -> 2024-04-21 | H10: 323.75 | I10: KWD | K10: SINV-008012 | L10: 202914 | M10: Under Procress
B11: 2024-02-21 | C11: WH/IN/501 | D11: PROD5 | E11: 2020 | F11: 140 | G11: =B11+60 -> 2024-04-21 | H11: 343 | I11: KWD | K11: SINV-008011 | L11: 202871 | M11: Under Procress
B12: 2024-02-22 | C12: WH/IN/502 | D12: PROD6 | E12: 2035 | F12: 330 | G12: =B12+60 -> 2024-04-22 | H12: 726 | I12: KWD | K12: SINV-008021 | L12: 202905 | M12: Under Procress
B13: 2024-03-20 | C13: WH/IN/538 | D13: PROD7 | E13: 2035 | F13: 105 | G13: =B13+60 -> 2024-05-19 | H13: 231 | I13: KWD | K13: SINV-008127 | L13: 202947 | M13: Pending

Sheet Vnd7
A3: Payment Terms | D3: 60 Days From Date of Delivery
A4: Vnd7
A6: Sr.No. | B6: Date | C6: SRV No. | D6: Material Name | E6: RM No. | F6: Quantity Received (Kg/No.s) | G6: Payment Due Date | H6: Amount Due/Paid | I6: Currency | J6: Due Age For RM (Days) | K6: INVOICE No. | L6: P.O. | M6: Statues | N6: DUE AS ON 21/04/2019
A7: 3 | B7: 2023-12-20 | C7: WH/IN/380 | D7: PROD1 | E7: 2018 | F7: 1000 | G7: =B7+60 -> 2024-02-18 | H7: 795 | I7: KWD | K7: SINV-032258 | L7: 202818 | M7: Paid
B8: 2024-01-11 | C8: WH/IN/00421 | D8: PROD2 | E8: 2029 | F8: 5000 | G8: 2024-03-11 | H8: 2765 | I8: KWD | K8: SINV-032676 | L8: 202897 | M8: Under Procress
B9: 2024-01-22 | C9: WH/IN/0444 | D9: PROD3 | E9: 2018 | F9: 1520 | G9: =B9+60 -> 2024-03-22 | H9: 1208.4 | I9: KWD | K9: SINV-032835 | L9: 202818 | M9: Under Procress
B10: 2024-02-01 | C10: WH/IN/493 | D10: PROD4 | E10: 2061 | F10: 640 | G10: =B10+60 -> 2024-04-01 | H10: 194 | I10: KWD | K10: SINV-031451 | L10: 202886 | M10: Under Procress
B11: 2024-03-02 | C11: WH/IN/520 | D11: PROD5 | E11: 2018 | F11: 1000 | G11: =B11+60 -> 2024-05-01 | H11: 795 | I11: KWD | K11: SINV-033734 | L11: 202934 | M11: Pending

Sheet Vnd8
A3: Payment Terms | D3: 60 Days From Date of Delivery
A4: Vnd8
A6: Sr.No. | B6: Date | C6: SRV No. | D6: Material Name | E6: RM No. | F6: Quantity Received (Kg/No.s) | G6: Payment Due Date | H6: Amount Due/Paid | I6: Currency | J6: Due Age For RM (Days) | K6: INVOICE No. | L6: P.O. | M6: Statues | N6: DUE AS ON 21/04/2019
A7: 2 | B7: 2021-10-28 | C7: 204922 204963 | D7: PROD1 | E7: 2001 | F7: =38700+42890 -> 81590 | G7: =B7+60 -> 2021-12-27 | H7: 1811.298 | I7: KWD | K7: 7900014507 | L7: 202509 | M7: Paid
H8: -448.745 | K8: 7900014539 | M8: Paid
B9: 2021-11-06 | C9: 204979 | D9: PROD2 | E9: 2001 | F9: 39660 | G9: =B9+60 -> 2022-01-05 | H9: 880.452 | I9: KWD | K9: 7900014571 | L9: 202509 | M9: Under Procress
H10: -218.13 | K10: 7900014603 | M10: Under Procress
B11: 2021-11-08 | C11: 204991 | D11: PROD3 | E11: 2001 | F11: 20000 | G11: =B11+60 -> 2022-01-07 | H11: 376 | I11: KWD | K11: 7900014572 | L11: 202306 | M11: Under Procress
B12: 2021-11-30 | C12: 205037 | D12: PROD4 | E12: 2001 | F12: =44960+47110 -> 92070 | G12: =B12+60 -> 2022-01-29 | H12: 2043.954 | I12: KWD | K12: 7900014641 | L12: 202509 | M12: Pending
C13: 205064 | D13: PROD5 | E13: 2001 | H13: -506.385 | K13: 7900014672 | M13: Pending
